[Event "35th Cannes FIJ Open 2022"]
[Site "Cannes"]
[Date "2022.02.21"]
[Round "1.4"]
[White "Lazo, Andrei"]
[Black "Valsecchi, Alessio"]
[Result "0-1"]
[ECO "A64"]
[WhiteElo "2254"]
[BlackElo "2524"]
[Annotator "ChessBase"]
[PlyCount "126"]
[EventDate "2022.02.21"]
[EventType "swiss"]
[EventCountry "FRA"]
[SourceTitle "playchess.com"]
[Source "ChessBase"]
[SourceQuality "1"]
[TimeControl "40/5400+30:1800+30"]

1. d4 {[%emt 0:16:37]} Nf6 {[%emt 0:00:34]} 2. c4 {[%emt 0:00:06]} e6 {[%emt 0:02:00]} 3. Nf3 {[%emt 0:00:07]} c5 {[%emt 0:00:30]} 4. d5 {[%emt 0:00:06]} exd5 {[%emt 0:00:12]} 5. cxd5 {[%emt 0:00:04]} d6 {[%emt 0:00:10]} 6. Nc3 {[%emt 0:00:09]} g6 {[%emt 0:00:09]} 7. g3 {[%emt 0:00:04]} Bg7 {[%emt 0:01:20]} 8. Bg2 {[%emt 0:00:05]} O-O {[%emt 0:00:13]} 9. O-O {[%emt 0:00:05]} a6 {[%emt 0:00:32]} 10. a4 {[%emt 0:00:04]} Re8 {[%emt 0:00:20]} 11. Nd2 {[%emt 0:00:11]} Nbd7 {[%emt 0:00:14]} 12. h3 {[%emt 0:00:09]} Rb8 {[%emt 0:00:30]} 13. Nc4 {[%emt 0:00:08]} Ne5 {[%emt 0:00:44]} 14. Na3 {[%emt 0:00:07]} Nh5 {[%emt 0:04:42]} 15. e4 {[%emt 0:00:06]} Bd7 {[%emt 0:05:57]} 16. a5 {[%emt 0:00:07]} Qxa5 {[%emt 0:05:29]} 17. g4 {[%emt 0:00:00]} Nf6 {[%emt 0:00:48]} 18. f4 Nexg4 19. hxg4 {[%emt 0:01:22]} Nxg4 {[%emt 0:10:03]} 20. f5 {[%emt 0:00:07]} h5 {[%emt 0:03:15]} 21. Qf3 {[%emt 0:17:46]} Qd8 {[%emt 0:16:32]} 22. Nc2 {[%emt 0:09:56]} Qe7 {[%emt 0:14:09]} 23. Qg3 {[%emt 0:03:39]} Be5 {[%emt 0:01:33]} 24. Bf4 {[%emt 0:00:29]} g5 {[%emt 0:06:31]} 25. Bxe5 {[%emt 0:00:36]} Qxe5 {[%emt 0:00:19]} 26. Qxe5 {[%emt 0:02:05]} Nxe5 {[%emt 0:00:58]} 27. Ne3 {[%emt 0:02:24]} f6 {[%emt 0:03:58]} 28. Bf3 {[%emt 0:01:29]} h4 {[%emt 0:08:06]} 29. Be2 {[%emt 0:01:13]} Kg7 {[%emt 0:02:58]} 30. b3 {[%emt 0:02:03]} Nf7 {[%emt 0:01:29]} 31. Bh5 {[%emt 0:09:50]} Bb5 {[%emt 0:01:43]} 32. Bxf7 {[%emt 0:01:45]} Kxf7 {[%emt 0:00:06]} 33. Nc4 {[%emt 0:00:08]} Ke7 {[%emt 0:02:03]} 34. Rfe1 {[%emt 0:18:25]} Bd7 {[%emt 0:02:25]} 35. Nb6 {[%emt 0:03:27]} Kd8 {[%emt 0:00:44]} 36. Kf2 {[%emt 0:00:42]} Rh8 {[%emt 0:01:50]} 37. Nxd7 {[%emt 0:00:43]} Kxd7 {[%emt 0:00:02]} 38. Rh1 {[%emt 0:02:12]} Rbg8 {[%emt 0:01:52]} 39. Ke3 {[%emt 0:02:03]} Rh7 {[%emt 0:01:00]} 40. Rag1 {[%emt 0:01:35]} Re8 {[%emt 0:00:35]} 41. Kf3 {[%emt 0:32:07]} Kc7 {[%emt 0:32:21]} 42. Ra1 {[%emt 0:01:53]} g4+ {[%emt 0:00:00]} 43. Kxg4 {[%emt 0:00:00]} Rg8+ {[%emt 0:00:00]} 44. Kf4 {[%emt 0:00:00]} h3 {[%emt 0:00:00]} 45. Rh2 {[%emt 0:00:00]} Rg2 {[%emt 0:00:00]} 46. Rah1 {[%emt 0:00:00]} Rxh2 {[%emt 0:00:00]} 47. Rxh2 {[%emt 0:00:00]} b5 {[%emt 0:00:00]} 48. Kg3 {[%emt 0:00:00]} Re7 {[%emt 0:00:00]} 49. Re2 {[%emt 0:00:00]} Kb6 {[%emt 0:00:00]} 50. Kxh3 {[%emt 0:00:00]} c4 {[%emt 0:00:20]} 51. bxc4 {[%emt 0:00:00]} bxc4 {[%emt 0:00:52]} 52. Kg4 {[%emt 0:00:00]} Kc5 {[%emt 0:00:28]} 53. Kf4 {[%emt 0:00:00]} Rh7 {[%emt 0:00:48]} 54. Ra2 {[%emt 0:01:08]} Kb4 {[%emt 0:02:40]} 55. Rxa6 {[%emt 0:03:48]} Kxc3 {[%emt 0:00:08]} 56. Rxd6 {[%emt 0:00:05]} Rh4+ {[%emt 0:00:16]} 57. Kf3 {[%emt 0:00:37]} Kd3 {[%emt 0:01:20]} 58. Re6 {[%emt 0:03:28]} c3 {[%emt 0:00:09]} 59. d6 {[%emt 0:00:13]} c2 {[%emt 0:00:49]} 60. d7 {[%emt 0:00:36]} Rf4+ {[%emt 0:00:46]} 61. Kg3 {[%emt 0:03:48]} c1=Q {[%emt 0:00:11]} 62. d8=Q+ {[%emt 0:00:05]} Ke2 {[%emt 0:00:08]} 63. Qd4 {[%emt 0:01:19]} Rf3+ {[%emt 0:00:22]} 0-1

[Event "35th Cannes FIJ Open 2022"]
[Site "Cannes"]
[Date "2022.02.21"]
[Round "1.8"]
[White "Gueci, Tea"]
[Black "Nikolov, Momchil"]
[Result "0-1"]
[ECO "B28"]
[WhiteElo "2235"]
[BlackElo "2501"]
[Annotator "ChessBase"]
[PlyCount "92"]
[EventDate "2022.02.21"]
[EventType "swiss"]
[EventCountry "FRA"]
[SourceTitle "playchess.com"]
[Source "ChessBase"]
[SourceQuality "1"]
[TimeControl "40/5400+30:1800+30"]

1. e4 {[%emt 0:00:03]} c5 {[%emt 0:11:32]} 2. Nf3 {[%emt 0:00:07]} a6 {[%emt 0:01:02]} 3. c3 {[%emt 0:02:14]} d5 {[%emt 0:01:07]} 4. exd5 {[%emt 0:00:55]} Nf6 {[%emt 0:00:17]} 5. Be2 {[%emt 0:09:49]} Nxd5 {[%emt 0:02:23]} 6. O-O {[%emt 0:01:10]} Nc6 {[%emt 0:09:18]} 7. d4 {[%emt 0:03:35]} e6 {[%emt 0:03:14]} 8. c4 {[%emt 0:09:25]} Nf6 {[%emt 0:00:42]} 9. Be3 {[%emt 0:01:31]} cxd4 {[%emt 0:08:54]} 10. Nxd4 {[%emt 0:01:38]} Bd7 {[%emt 0:00:13]} 11. Nb3 {[%emt 0:10:03]} Qc7 {[%emt 0:05:26]} 12. Nc3 {[%emt 0:03:29]} Bd6 {[%emt 0:09:43]} 13. h3 {[%emt 0:02:12]} Ne7 {[%emt 0:01:25]} 14. Rc1 {[%emt 0:13:56]} Rd8 {[%emt 0:05:46]} 15. Qc2 {[%emt 0:03:50]} O-O {[%emt 0:04:47]} 16. Rfd1 {[%emt 0:02:50]} Nf5 {[%emt 0:00:36]} 17. Bg5 {[%emt 0:02:21]} h6 {[%emt 0:10:09]} 18. Bxf6 {[%emt 0:05:14]} gxf6 {[%emt 0:00:04]} 19. Bd3 {[%emt 0:03:48]} Nh4 {[%emt 0:04:21]} 20. Ne4 {[%emt 0:02:49]} Be7 {[%emt 0:01:06]} 21. Qd2 {[%emt 0:10:46]} Kg7 {[%emt 0:06:42]} 22. Ng3 {[%emt 0:00:51]} f5 {[%emt 0:01:31]} 23. c5 {[%emt 0:04:38]} Bc6 {[%emt 0:02:11]} 24. Qc3+ {[%emt 0:00:15]} Kh7 {[%emt 0:00:20]} 25. Bf1 {[%emt 0:00:53]} Rg8 {[%emt 0:01:11]} 26. Rxd8 {[%emt 0:00:20]} Bxd8 {[%emt 0:03:10]} 27. Nd4 {[%emt 0:01:02]} Bd5 {[%emt 0:01:07]} 28. Qd3 {[%emt 0:02:09]} Qe5 {[%emt 0:02:37]} 29. Rd1 {[%emt 0:00:25]} Bc7 {[%emt 0:00:26]} 30. Rd2 {[%emt 0:02:34]} Rg6 {[%emt 0:00:38]} 31. Re2 {[%emt 0:00:27]} Qg7 {[%emt 0:00:47]} 32. Re3 {[%emt 0:00:38]} Bf4 {[%emt 0:01:14]} 33. Nde2 {[%emt 0:00:25]} Bxe3 {[%emt 0:00:43]} 34. Qxe3 {[%emt 0:00:02]} Qxb2 {[%emt 0:01:27]} 35. Nf4 {[%emt 0:00:55]} Bxa2 {[%emt 0:00:58]} 36. Nxg6 {[%emt 0:00:32]} Nxg6 {[%emt 0:00:02]} 37. Qd3 {[%emt 0:00:31]} Bd5 {[%emt 0:01:06]} 38. Nh5 {[%emt 0:00:36]} Qe5 {[%emt 0:00:17]} 39. Ng3 {[%emt 0:00:25]} Bc6 {[%emt 0:00:17]} 40. Qc2 {[%emt 0:00:32]} f4 {[%emt 0:00:24]} 41. Ne2 {[%emt 0:02:01]} f3 {[%emt 0:03:45]} 42. gxf3 {[%emt 0:03:19]} Bxf3 {[%emt 0:00:22]} 43. Ng3 {[%emt 0:00:45]} Kg7 {[%emt 0:00:46]} 44. Qb3 {[%emt 0:06:56]} Bc6 {[%emt 0:01:43]} 45. Qb4 {[%emt 0:02:32]} Kg8 {[%emt 0:03:59]} 46. Qb6 {[%emt 0:02:09]} Qd5 {[%emt 0:01:10]} 0-1

[Event "35th Cannes FIJ Open 2022"]
[Site "Cannes"]
[Date "2022.02.22"]
[Round "3.5"]
[White "Boyer, Mahel"]
[Black "Travadon, Loic"]
[Result "1-0"]
[ECO "B30"]
[WhiteElo "2407"]
[BlackElo "2459"]
[Annotator "ChessBase"]
[PlyCount "143"]
[EventDate "2022.02.21"]
[EventType "swiss"]
[EventCountry "FRA"]
[SourceTitle "playchess.com"]
[Source "ChessBase"]
[SourceQuality "1"]
[TimeControl "40/5400+30:1800+30"]

1. e4 {[%emt 0:09:57]} c5 {[%emt 0:02:00]} 2. Nf3 {[%emt 0:00:50]} Nc6 {[%emt 0:00:38]} 3. Bc4 {[%emt 0:01:26]} a6 {[%emt 0:02:56]} 4. O-O {[%emt 0:02:14]} b5 {[%emt 0:00:18]} 5. Be2 {[%emt 0:00:56]} Nf6 {[%emt 0:00:35]} 6. d3 {[%emt 0:01:59]} e6 {[%emt 0:04:39]} 7. a4 {[%emt 0:02:14]} Rb8 {[%emt 0:00:50]} 8. axb5 {[%emt 0:13:23]} axb5 {[%emt 0:00:03]} 9. c3 {[%emt 0:09:25]} Be7 {[%emt 0:02:33]} 10. Nbd2 {[%emt 0:05:06]} d5 {[%emt 0:01:38]} 11. e5 {[%emt 0:11:13]} Nd7 {[%emt 0:00:03]} 12. d4 {[%emt 0:00:04]} f6 {[%emt 0:00:52]} 13. exf6 {[%emt 0:01:14]} Bxf6 {[%emt 0:00:08]} 14. dxc5 {[%emt 0:08:24]} Nxc5 {[%emt 0:00:35]} 15. Nb3 {[%emt 0:00:06]} Nxb3 {[%emt 0:01:13]} 16. Qxb3 {[%emt 0:00:45]} O-O {[%emt 0:00:06]} 17. Bf4 {[%emt 0:04:02]} e5 {[%emt 0:00:30]} 18. Bg3 {[%emt 0:00:06]} Be6 {[%emt 0:01:29]} 19. Rfe1 {[%emt 0:00:22]} Bf7 {[%emt 0:01:09]} 20. Bf1 {[%emt 0:00:34]} Re8 {[%emt 0:00:19]} 21. Ra6 {[%emt 0:03:01]} Qc8 {[%emt 0:00:28]} 22. Qa3 {[%emt 0:00:37]} h6 {[%emt 0:03:27]} 23. h3 {[%emt 0:03:39]} Qb7 {[%emt 0:07:22]} 24. Ra1 {[%emt 0:03:43]} Rec8 {[%emt 0:08:43]} 25. Re1 {[%emt 0:03:36]} Re8 {[%emt 0:02:55]} 26. Ra1 {[%emt 0:00:22]} Kh8 {[%emt 0:05:54]} 27. Qd6 {[%emt 0:01:34]} Rbc8 {[%emt 0:00:51]} 28. Qc5 {[%emt 0:00:47]} Nd4 {[%emt 0:03:14]} 29. Qa7 {[%emt 0:03:00]} Nxf3+ {[%emt 0:00:29]} 30. gxf3 {[%emt 0:00:02]} Rb8 {[%emt 0:00:51]} 31. R1a5 {[%emt 0:02:31]} Re7 {[%emt 0:02:49]} 32. Qc5 {[%emt 0:02:45]} Rc7 {[%emt 0:02:32]} 33. Qxb5 {[%emt 0:00:55]} Qxb5 {[%emt 0:00:01]} 34. Rxb5 {[%emt 0:00:56]} Rxb5 {[%emt 0:00:17]} 35. Bxb5 {[%emt 0:00:17]} Rb7 {[%emt 0:00:12]} 36. Ra8+ {[%emt 0:01:39]} Kh7 {[%emt 0:00:04]} 37. Bd3+ {[%emt 0:00:13]} Bg6 {[%emt 0:00:00]} 38. Bxg6+ {[%emt 0:00:32]} Kxg6 {[%emt 0:00:01]} 39. Ra5 {[%emt 0:02:38]} Rd7 {[%emt 0:01:07]} 40. Kf1 {[%emt 0:01:27]} Kf5 {[%emt 0:00:41]} 41. Rb5 {[%emt 0:10:56]} g5 {[%emt 0:00:00]} 42. b4 {[%emt 0:07:37]} h5 {[%emt 0:03:31]} 43. Rc5 {[%emt 0:02:56]} Be7 {[%emt 0:00:24]} 44. Ra5 {[%emt 0:00:36]} h4 {[%emt 0:00:07]} 45. Bh2 {[%emt 0:00:01]} Bf6 {[%emt 0:02:34]} 46. Rc5 {[%emt 0:02:08]} Ke6 {[%emt 0:00:22]} 47. c4 {[%emt 0:02:57]} d4 {[%emt 0:01:20]} 48. Ke2 {[%emt 0:01:40]} Ra7 {[%emt 0:07:44]} 49. Ra5 {[%emt 0:00:30]} Rxa5 {[%emt 0:03:32]} 50. bxa5 {[%emt 0:00:11]} Bd8 {[%emt 0:00:01]} 51. a6 {[%emt 0:00:14]} Bb6 {[%emt 0:00:01]} 52. f4 {[%emt 0:02:34]} gxf4 {[%emt 0:02:25]} 53. f3 {[%emt 0:01:17]} Kd6 {[%emt 0:03:31]} 54. Kd3 {[%emt 0:01:00]} Kc6 {[%emt 0:00:16]} 55. Bg1 {[%emt 0:01:49]} Bd8 {[%emt 0:00:38]} 56. c5 {[%emt 0:00:36]} Be7 {[%emt 0:00:29]} 57. Bf2 {[%emt 0:00:05]} Bxc5 {[%emt 0:02:27]} 58. Bxh4 {[%emt 0:00:09]} Kd5 {[%emt 0:03:31]} 59. Bd8 {[%emt 0:02:28]} e4+ {[%emt 0:01:14]} 60. fxe4+ {[%emt 0:00:03]} Kc6 {[%emt 0:00:01]} 61. Bh4 {[%emt 0:02:02]} f3 {[%emt 0:00:20]} 62. Bf2 {[%emt 0:00:29]} Kb6 {[%emt 0:02:03]} 63. h4 {[%emt 0:00:11]} Kxa6 {[%emt 0:00:04]} 64. h5 {[%emt 0:00:05]} Kb7 {[%emt 0:00:11]} 65. e5 {[%emt 0:01:20]} Kc6 {[%emt 0:00:42]} 66. h6 {[%emt 0:00:14]} Bf8 {[%emt 0:00:06]} 67. h7 {[%emt 0:00:04]} Bg7 {[%emt 0:00:03]} 68. Kxd4 {[%emt 0:00:27]} Kd7 {[%emt 0:00:23]} 69. Kd5 {[%emt 0:00:50]} Ke7 {[%emt 0:01:36]} 70. Bh4+ {[%emt 0:00:37]} Kf7 {[%emt 0:00:06]} 71. e6+ {[%emt 0:00:26]} Ke8 {[%emt 0:06:58]} 72. Ke4 {[%emt 0:00:19]} 1-0

[Event "35th Cannes FIJ Open 2022"]
[Site "Cannes"]
[Date "2022.02.24"]
[Round "5.2"]
[White "Boyer, Mahel"]
[Black "Razafindratsima, Timothe"]
[Result "1-0"]
[ECO "A04"]
[WhiteElo "2407"]
[BlackElo "2386"]
[Annotator "RC"]
[PlyCount "153"]
[EventDate "2022.02.21"]
[EventType "swiss"]
[EventCountry "FRA"]
[SourceTitle "playchess.com"]
[Source "ChessBase"]
[SourceQuality "1"]
[TimeControl "40/5400+30:1800+30"]

1. Nf3 {[%emt 0:08:53]} c5 {[%emt 0:00:10]} 2. c4 {[%emt 0:00:37]} Nc6 {[%emt 0:00:23]} 3. Nc3 {[%emt 0:00:26]} g6 {[%emt 0:00:13]} 4. e3 {[%emt 0:00:42]} Nf6 {[%emt 0:00:08]} 5. d4 {[%emt 0:00:10]} cxd4 {[%emt 0:00:07]} 6. exd4 {[%emt 0:00:05]} d5 {[%emt 0:00:14]} 7. cxd5 {[%emt 0:01:20]} Nxd5 {[%emt 0:00:08]} 8. Qb3 {[%emt 0:01:32]} Nxc3 {[%emt 0:00:12]} 9. Bc4 {[%emt 0:00:10]} e6 {[%emt 0:00:05]} 10. bxc3 {[%emt 0:00:05]} Bd7 {[%emt 0:00:05]} 11. Be2 {[%emt 0:01:06]} Qc7 {[%emt 0:03:26]} 12. O-O {[%emt 0:01:12]} Bg7 {[%emt 0:06:28]} 13. Ba3 {[%emt 0:00:16]} Na5 {[%emt 0:00:37]} 14. Qb2 {[%emt 0:02:02]} O-O-O {[%emt 0:16:41]} 15. Be7 {[%emt 0:11:29]} Rde8 {[%emt 0:00:49]} 16. Bh4 {[%emt 0:00:07]} f6 {[%emt 0:09:34]} 17. Bg3 {[%emt 0:02:20]} e5 {[%emt 0:00:21]} 18. Rfd1 {[%emt 0:10:10]} Ba4 {[%emt 0:15:13]} 19. Re1 {[%emt 0:03:43]} Kb8 {[%emt 0:03:21]} 20. Rab1 {[%emt 0:05:34]} Ka8 {[%emt 0:04:23]} 21. h3 {[%emt 0:09:28]} Bd7 {[%emt 0:14:58]} 22. Bf1 {[%emt 0:16:03]} Re6 {[%emt 0:08:45]} 23. c4 {[%emt 0:08:47]} Rb6 {[%emt 0:03:28]} 24. Qc3 {[%emt 0:01:45]} Rxb1 {[%emt 0:00:31]} 25. Rxb1 {[%emt 0:00:03]} Re8 {[%emt 0:00:40]} 26. c5 {[%emt 0:02:26]} Bc6 {[%emt 0:01:10]} 27. Bb5 {[%emt 0:04:07]} Bxb5 {[%emt 0:01:24]} 28. Rxb5 {[%emt 0:00:07]} Nc6 {[%emt 0:00:39]} 29. d5 {[%emt 0:00:22]} Nb8 {[%emt 0:00:31]} 30. Qc4 {[%emt 0:05:00]} a6 {[%emt 0:00:52]} 31. Rb1 {[%emt 0:01:23]} Qf7 {[%emt 0:05:08]} 32. Nd2 {[%emt 0:02:18]} Rd8 {[%emt 0:02:22]} 33. Qb3 {[%emt 0:01:01]} Bf8 {[%emt 0:01:52]} 34. c6 {[%emt 0:00:25]} bxc6 {[%emt 0:01:57]} 35. Qb6 {[%emt 0:00:40]} Re8 {[%emt 0:00:23]} 36. dxc6 {[%emt 0:00:42]} Qa7 {[%emt 0:00:35]} 37. Nc4 {[%emt 0:00:04]} Bc5 {[%emt 0:00:22]} 38. Qb3 {[%emt 0:01:43]} Nxc6 {[%emt 0:00:43]} 39. Qf3 {[%emt 0:00:07]} e4 {[%emt 0:00:30]} 40. Qxf6 {[%emt 0:00:12]} Qd7 {[%emt 0:00:29]} 41. Nb6+ {[%emt 0:09:32]} Bxb6 {[%emt 0:00:00]} 42. Rxb6 {[%emt 0:00:02]} Re6 {[%emt 0:01:49]} 43. Qb2 {[%emt 0:00:38]} Qc8 {[%emt 0:00:11]} 44. Qa3 {[%emt 0:01:12]} Nd8 {[%emt 0:05:41]} 45. Rb8+ {[%emt 0:04:27]} Qxb8 {[%emt 0:00:05]} 46. Bxb8 {[%emt 0:00:03]} Kxb8 {[%emt 0:00:09]} 47. Qb2+ {[%emt 0:01:05]} Kc8 {[%emt 0:00:24]} 48. Qc3+ {[%emt 0:00:04]} Rc6 {[%emt 0:02:00]} 49. Qe3 {[%emt 0:00:40]} Re6 {[%emt 0:00:15]} 50. Qc5+ {[%emt 0:00:21]} Kb7 {[%emt 0:04:52]} 51. Qd5+ {[%emt 0:00:18]} Kc7 {[%emt 0:00:07]} 52. g4 {[%emt 0:00:23]} Kc8 {[%emt 0:07:50]} 53. g5 {[%emt 0:04:56]} Kc7 {[%emt 0:00:45]} 54. h4 {[%emt 0:00:05]} Kc8 {[%emt 0:03:11]} 55. Qa8+ {[%emt 0:00:14]} Kc7 {[%emt 0:00:06]} 56. Qa7+ {[%emt 0:00:02]} Nb7 {[%emt 0:00:05]} 57. Qd4 {[%emt 0:00:04]} Re7 {[%emt 0:01:05]} 58. Qc4+ {[%emt 0:00:15]} Kd6 {[%emt 0:00:04]} 59. Qxa6+ {[%emt 0:00:04]} Kd5 {[%emt 0:00:05]} 60. a4 {[%emt 0:01:43]} Nc5 {[%emt 0:01:37]} 61. Qb6 {[%emt 0:00:12]} Rb7 {[%emt 0:00:28]} 62. Qd8+ {[%emt 0:00:08]} Kc4 {[%emt 0:00:44]} 63. Qe8 {[%emt 0:00:42]} Rd7 {[%emt 0:05:22]} 64. Qc8 {[%emt 0:01:08]} Ra7 {[%emt 0:01:40]} 65. Qc6 {[%emt 0:02:01]} Rxa4 {[%emt 0:00:41]} 66. Qc7 {[%emt 0:00:05]} Ra6 {[%emt 0:00:03]} 67. Qxh7 {[%emt 0:00:07]} Ra1+ {[%emt 0:02:09]} 68. Kh2 {[%emt 0:00:21]} Kd3 {[%emt 0:01:32]} 69. Qxg6 {[%emt 0:00:45]} Nb3 {[%emt 0:01:08]} 70. Qd6+ {[%emt 0:01:39]} Nd4 {[%emt 0:00:48]} 71. g6 {[%emt 0:01:27]} e3 {[%emt 0:00:35]} 72. fxe3 {[%emt 0:00:41]} Kxe3 {[%emt 0:00:12]} 73. Qe5+ {[%emt 0:00:09]} Kd3 {[%emt 0:00:15]} 74. Qg3+ {[%emt 0:00:03]} Ke4 {[%emt 0:00:39]} 75. g7 {[%emt 0:00:24]} Nf3+ {[%emt 0:00:52]} 76. Qxf3+ {[%emt 0:00:10]} Kxf3 {[%emt 0:00:04]} 77. g8=Q {[%emt 0:00:06]} 1-0

[Event "35th Cannes FIJ Open 2022"]
[Site "Cannes"]
[Date "2022.02.24"]
[Round "6.1"]
[White "Godena, Michele"]
[Black "Boyer, Mahel"]
[Result "1/2-1/2"]
[ECO "C09"]
[WhiteElo "2442"]
[BlackElo "2407"]
[Annotator "RC"]
[PlyCount "44"]
[EventDate "2022.02.21"]
[EventType "swiss"]
[EventCountry "FRA"]
[SourceTitle "playchess.com"]
[Source "ChessBase"]
[SourceQuality "1"]
[TimeControl "40/5400+30:1800+30"]

1. e4 {[%emt 0:00:03]} e6 {[%emt 0:11:05]} 2. d4 {[%emt 0:00:16]} d5 {[%emt 0:00:06]} 3. Nd2 {[%emt 0:00:11]} c5 {[%emt 0:00:21]} 4. Ngf3 {[%emt 0:03:30]} Nc6 {[%emt 0:01:29]} 5. exd5 {[%emt 0:01:22]} exd5 {[%emt 0:00:06]} 6. Bb5 {[%emt 0:01:19]} Qe7+ {[%emt 0:00:07]} 7. Be2 {[%emt 0:03:53]} Qc7 {[%emt 0:00:30]} 8. dxc5 {[%emt 0:25:09]} Bxc5 {[%emt 0:00:10]} 9. Nb3 {[%emt 0:00:07]} Bb6 {[%emt 0:05:21]} 10. Nfd4 {[%emt 0:19:02]} Nf6 {[%emt 0:02:25]} 11. Be3 {[%emt 0:00:39]} a6 {[%emt 0:12:04]} 12. c3 {[%emt 0:16:38]} O-O {[%emt 0:06:16]} 13. Nc2 {[%emt 0:03:17]} Rd8 {[%emt 0:11:10]} 14. O-O {[%emt 0:01:24]} Bxe3 {[%emt 0:01:03]} 15. Nxe3 {[%emt 0:00:05]} Qb6 {[%emt 0:00:20]} 16. Qc2 {[%emt 0:08:00]} Be6 {[%emt 0:06:09]} 17. Rfd1 {[%emt 0:05:01]} d4 {[%emt 0:02:14]} 18. Nxd4 {[%emt 0:04:13]} Nxd4 {[%emt 0:03:40]} 19. cxd4 {[%emt 0:00:08]} Rxd4 {[%emt 0:00:53]} 20. Rxd4 {[%emt 0:00:12]} Qxd4 {[%emt 0:00:03]} 21. Rd1 {[%emt 0:00:18]} Qb6 {[%emt 0:00:45]} 22. b3 {[%emt 0:00:52]} h6 {[%emt 0:01:20]} 1/2-1/2

[Event "35th Cannes FIJ Open 2022"]
[Site "Cannes"]
[Date "2022.02.24"]
[Round "6.6"]
[White "Valsecchi, Alessio"]
[Black "Razafindratsima, Timothe"]
[Result "1/2-1/2"]
[ECO "B50"]
[WhiteElo "2524"]
[BlackElo "2386"]
[Annotator "RC"]
[PlyCount "107"]
[EventDate "2022.02.21"]
[EventType "swiss"]
[EventCountry "FRA"]
[SourceTitle "playchess.com"]
[Source "ChessBase"]
[SourceQuality "1"]
[TimeControl "40/5400+30:1800+30"]

1. e4 {[%emt 0:00:04]} c5 {[%emt 0:08:19]} 2. Nf3 {[%emt 0:00:09]} d6 {[%emt 0:00:14]} 3. Bc4 {[%emt 0:00:54]} Nf6 {[%emt 0:00:41]} 4. e5 {[%emt 0:00:18]} dxe5 {[%emt 0:00:25]} 5. Nxe5 {[%emt 0:00:07]} e6 {[%emt 0:00:17]} 6. Qe2 {[%emt 0:00:17]} Bd6 {[%emt 0:00:41]} 7. b3 {[%emt 0:00:18]} a6 {[%emt 0:10:41]} 8. a4 O-O {[%emt 0:00:25]} 9. Bb2 {[%emt 0:00:13]} Nbd7 {[%emt 0:02:48]} 10. f4 {[%emt 0:00:20]} Nd5 {[%emt 0:02:11]} 11. O-O {[%emt 0:00:50]} Qc7 {[%emt 0:04:12]} 12. Nxd7 {[%emt 0:18:21]} Bxd7 {[%emt 0:01:11]} 13. Qg4 {[%emt 0:19:03]} f6 {[%emt 0:01:01]} 14. Nc3 {[%emt 0:17:13]} Bxf4 {[%emt 0:11:04]} 15. Nxd5 {[%emt 0:01:18]} Bxh2+ {[%emt 0:00:22]} 16. Kh1 {[%emt 0:01:11]} exd5 {[%emt 0:01:15]} 17. Bxd5+ {[%emt 0:00:30]} Kh8 {[%emt 0:00:06]} 18. Qh5 {[%emt 0:01:56]} Bf4 {[%emt 0:18:27]} 19. Rae1 {[%emt 0:04:38]} Qd6 {[%emt 0:04:54]} 20. Bxb7 {[%emt 0:06:16]} Rab8 {[%emt 0:01:28]} 21. Bxa6 {[%emt 0:03:57]} Bxd2 {[%emt 0:03:11]} 22. Bd3 {[%emt 0:02:22]} Bh6 {[%emt 0:01:50]} 23. Rd1 {[%emt 0:01:20]} Be8 {[%emt 0:04:43]} 24. Bc4 {[%emt 0:01:29]} Qg3 {[%emt 0:02:36]} 25. Be5 {[%emt 0:03:53]} Bxh5 {[%emt 0:04:30]} 26. Bxg3 {[%emt 0:00:11]} Bxd1 {[%emt 0:00:11]} 27. Bxb8 {[%emt 0:00:06]} Bxc2 {[%emt 0:00:25]} 28. Bd6 {[%emt 0:00:08]} Rd8 {[%emt 0:05:25]} 29. Re1 {[%emt 0:02:52]} f5 {[%emt 0:05:12]} 30. Bc7 {[%emt 0:07:00]} Rc8 {[%emt 0:01:31]} 31. a5 {[%emt 0:00:46]} Be4 {[%emt 0:00:44]} 32. Rd1 {[%emt 0:01:05]} Bg5 {[%emt 0:00:39]} 33. Be5 {[%emt 0:01:33]} Rd8 {[%emt 0:00:32]} 34. Rxd8+ {[%emt 0:01:21]} Bxd8 {[%emt 0:00:02]} 35. a6 {[%emt 0:00:07]} Bb6 {[%emt 0:00:42]} 36. Bb8 {[%emt 0:00:09]} h6 {[%emt 0:01:14]} 37. Be2 {[%emt 0:00:24]} Bd5 {[%emt 0:00:26]} 38. Bc4 {[%emt 0:04:00]} Be4 {[%emt 0:01:08]} 39. Be2 {[%emt 0:01:34]} Bd5 {[%emt 0:00:26]} 40. a7 {[%emt 0:00:11]} Bxa7 {[%emt 0:00:21]} 41. Bxa7 {[%emt 0:30:07]} Bxb3 {[%emt 0:30:04]} 42. Bxc5 {[%emt 0:00:05]} Bc2 {[%emt 0:00:36]} 43. Kg1 {[%emt 0:01:54]} Kh7 {[%emt 0:04:17]} 44. Kf2 {[%emt 0:00:00]} f4 {[%emt 0:00:00]} 45. Bb5 {[%emt 0:00:00]} Be4 {[%emt 0:00:00]} 46. Be8 {[%emt 0:00:00]} g5 {[%emt 0:00:00]} 47. Bd6 {[%emt 0:00:00]} Bd5 {[%emt 0:00:00]} 48. Be5 {[%emt 0:00:00]} Be4 {[%emt 0:00:00]} 49. Bf7 {[%emt 0:00:00]} Bc6 {[%emt 0:00:00]} 50. Bh5 {[%emt 0:00:00]} Be4 {[%emt 0:00:00]} 51. Bf3 {[%emt 0:00:00]} Bxf3 {[%emt 0:00:00]} 52. Kxf3 {[%emt 0:00:00]} Kg6 {[%emt 0:00:00]} 53. Ke4 {[%emt 0:00:00]} h5 {[%emt 0:00:00]} 54. Bd4 {[%emt 0:00:00]} 1/2-1/2

[Event "35th Cannes FIJ Open 2022"]
[Site "Cannes"]
[Date "2022.02.24"]
[Round "6.8"]
[White "Eugene, Floryan"]
[Black "Dimitrov, Radoslav"]
[Result "0-1"]
[ECO "B17"]
[WhiteElo "2404"]
[BlackElo "2487"]
[Annotator "RC"]
[PlyCount "56"]
[EventDate "2022.02.21"]
[EventType "swiss"]
[EventCountry "FRA"]
[SourceTitle "playchess.com"]
[Source "ChessBase"]
[SourceQuality "1"]
[TimeControl "40/5400+30:1800+30"]

1. e4 {[%emt 0:00:02]} c6 {[%emt 0:13:43]} 2. d4 {[%emt 0:00:30]} d5 {[%emt 0:00:04]} 3. Nd2 {[%emt 0:03:48]} dxe4 {[%emt 0:00:10]} 4. Nxe4 {[%emt 0:00:06]} Nd7 {[%emt 0:00:05]} 5. Bd3 {[%emt 0:01:16]} Ndf6 {[%emt 0:00:39]} 6. Ng5 {[%emt 0:02:33]} e6 {[%emt 0:06:08]} 7. N1f3 {[%emt 0:06:59]} Bd6 {[%emt 0:00:02]} 8. O-O {[%emt 0:00:24]} h6 {[%emt 0:00:16]} 9. Nxf7 {[%emt 0:04:12]} Kxf7 {[%emt 0:00:03]} 10. Ne5+ {[%emt 0:00:06]} Bxe5 {[%emt 0:00:46]} 11. dxe5 {[%emt 0:00:05]} Nd7 {[%emt 0:03:46]} 12. Qh5+ {[%emt 0:16:12]} Kf8 {[%emt 0:00:36]} 13. Qf3+ {[%emt 0:00:15]} Ke7 {[%emt 0:00:22]} 14. Qg3 {[%emt 0:00:11]} Qf8 {[%emt 0:02:39]} 15. f4 {[%emt 0:10:18]} Nc5 {[%emt 0:22:52]} 16. Bg6 {[%emt 0:05:21]} Kd8 {[%emt 0:00:01]} 17. Be3 {[%emt 0:07:40]} Kc7 {[%emt 0:08:04]} 18. Qf2 {[%emt 0:14:16]} b6 {[%emt 0:01:02]} 19. a4 {[%emt 0:07:33]} Ne7 {[%emt 0:01:33]} 20. a5 {[%emt 0:00:24]} Ba6 {[%emt 0:00:30]} 21. b4 {[%emt 0:01:31]} Bxf1 {[%emt 0:00:49]} 22. bxc5 {[%emt 0:03:07]} b5 {[%emt 0:00:14]} 23. Qxf1 {[%emt 0:01:10]} Nxg6 {[%emt 0:00:03]} 24. Qd3 {[%emt 0:00:28]} Nh4 {[%emt 0:00:06]} 25. c4 {[%emt 0:00:25]} Rd8 {[%emt 0:00:27]} 26. Qc3 {[%emt 0:00:06]} Qf5 {[%emt 0:00:50]} 27. cxb5 {[%emt 0:00:10]} Qe4 {[%emt 0:01:18]} 28. b6+ {[%emt 0:00:05]} Kc8 {[%emt 0:00:09]} 0-1